[Event "GER-ch Youth U14W 2020"]
[Site "Willingen"]
[Date "2020.10.23"]
[Round "5.13"]
[White "Kanno, Clara Yumi"]
[Black "Alferova, Emily"]
[Result "0-1"]
[ECO "C45"]
[WhiteElo "1127"]
[BlackElo "1329"]
[Annotator "NA RC"]
[PlyCount "116"]
[EventDate "2020.10.20"]
[EventType "swiss"]
[EventRounds "7"]
[EventCountry "GER"]
[SourceTitle "playchess.com"]
[Source "ChessBase"]
[SourceQuality "1"]
[TimeControl "40/5400+30:1800+30"]

1. e4 {[%emt 0:00:00]} e5 {[%emt 0:00:00]} 2. Nf3 {[%emt 0:00:00]} Nc6 {[%emt 0:00:00]} 3. d4 {[%emt 0:00:00]} exd4 {[%emt 0:00:00]} 4. Nxd4 {[%emt 0:00:01]} Bc5 {[%emt 0:01:39]} 5. Be3 {[%emt 0:00:59]} Qf6 {[%emt 0:02:38]} 6. c3 {[%emt 0:12:32]} a6 {[%emt 0:06:20]} 7. Bc4 {[%emt 0:06:13]} Ne5 {[%emt 0:11:38]} 8. Bb3 {[%emt 0:04:08]} d6 {[%emt 0:03:30]} 9. h3 {[%emt 0:03:36]} Qg6 {[%emt 0:08:27]} 10. Rg1 {[%emt 0:15:16]} Qxe4 {[%emt 0:09:01]} 11. Bc2 {[%emt 0:03:37]} Qh4 {[%emt 0:01:17]} 12. Nf3 {[%emt 0:02:34]} Nxf3+ {[%emt 0:03:51]} 13. Qxf3 {[%emt 0:00:23]} Bxe3 {[%emt 0:01:07]} 14. Qxe3+ {[%emt 0:00:09]} Qe7 {[%emt 0:00:22]} 15. Qxe7+ {[%emt 0:01:54]} Nxe7 {[%emt 0:00:45]} 16. Nd2 {[%emt 0:00:14]} Be6 {[%emt 0:01:46]} 17. O-O-O {[%emt 0:02:26]} O-O-O {[%emt 0:01:53]} 18. Kb1 {[%emt 0:03:12]} h6 {[%emt 0:05:01]} 19. Rde1 {[%emt 0:06:08]} Rde8 {[%emt 0:01:10]} 20. Re2 {[%emt 0:01:58]} Ng6 {[%emt 0:05:27]} 21. Nb3 {[%emt 0:11:02]} Nf4 {[%emt 0:06:00]} 22. Re4 {[%emt 0:03:01]} Nd5 {[%emt 0:01:32]} 23. Rge1 {[%emt 0:01:26]} Bd7 {[%emt 0:04:43]} 24. Nd4 {[%emt 0:02:36]} Nf6 {[%emt 0:06:32]} 25. R4e3 {[%emt 0:07:51]} Rxe3 {[%emt 0:03:19]} 26. Rxe3 {[%emt 0:00:21]} Kd8 {[%emt 0:03:14]} 27. Bb3 {[%emt 0:04:42]} d5 {[%emt 0:02:14]} 28. c4 {[%emt 0:01:51]} c5 {[%emt 0:01:31]} 29. Nf3 {[%emt 0:00:32]} d4 {[%emt 0:00:43]} 30. Re5 {[%emt 0:00:15]} b6 {[%emt 0:00:41]} 31. Bc2 {[%emt 0:00:27]} Be6 {[%emt 0:01:52]} 32. Bd3 {[%emt 0:00:58]} Kc7 {[%emt 0:00:26]} 33. a4 {[%emt 0:00:48]} Re8 {[%emt 0:00:23]} 34. Kc2 {[%emt 0:01:40]} Kd6 {[%emt 0:00:48]} 35. b3 {[%emt 0:00:38]} Bxc4 {[%emt 0:02:11]} 36. Rxe8 {[%emt 0:00:20]} Bxd3+ {[%emt 0:00:06]} 37. Kxd3 {[%emt 0:00:11]} Nxe8 {[%emt 0:00:04]} 38. Nd2 {[%emt 0:00:28]} b5 {[%emt 0:00:38]} 39. axb5 {[%emt 0:00:18]} axb5 {[%emt 0:00:08]} 40. f3 {[%emt 0:00:21]} f5 {[%emt 0:01:10]} 41. f4 {[%emt 0:31:21]} Nf6 {[%emt 0:30:21]} 42. g4 {[%emt 0:00:43]} fxg4 {[%emt 0:00:41]} 43. hxg4 {[%emt 0:00:08]} Nxg4 {[%emt 0:00:07]} 44. Nf3 {[%emt 0:00:23]} Kd5 {[%emt 0:01:39]} 45. Nh4 {[%emt 0:00:28]} c4+ {[%emt 0:01:01]} 46. bxc4+ {[%emt 0:00:09]} bxc4+ {[%emt 0:00:04]} 47. Kd2 {[%emt 0:00:10]} Ke4 {[%emt 0:00:22]} 48. f5 {[%emt 0:00:15]} c3+ {[%emt 0:00:37]} 49. Kc2 {[%emt 0:00:07]} Ne3+ {[%emt 0:00:10]} 50. Kc1 {[%emt 0:00:14]} Nxf5 {[%emt 0:00:13]} 51. Ng2 {[%emt 0:00:16]} d3 {[%emt 0:00:37]} 52. Ne1 {[%emt 0:00:09]} d2+ {[%emt 0:00:42]} 53. Kd1 {[%emt 0:00:05]} dxe1=Q+ {[%emt 0:00:38]} 54. Kxe1 {[%emt 0:00:09]} g5 {[%emt 0:00:32]} 55. Kd1 {[%emt 0:00:07]} Kd3 {[%emt 0:00:28]} 56. Kc1 {[%emt 0:00:04]} c2 {[%emt 0:00:13]} 57. Kb2 {[%emt 0:00:03]} Kd2 {[%emt 0:00:07]} 58. Ka3 {[%emt 0:00:08]} c1=Q+ 0-1

[Event "GER-ch Youth U14W 2020"]
[Site "Willingen"]
[Date "2020.10.23"]
[Round "6.1"]
[White "Zhou, Lepu Coco"]
[Black "Pohle, Saskia"]
[Result "0-1"]
[ECO "B53"]
[WhiteElo "1872"]
[BlackElo "1749"]
[Annotator "NA"]
[PlyCount "134"]
[EventDate "2020.10.20"]
[EventType "swiss"]
[EventRounds "7"]
[EventCountry "GER"]
[SourceTitle "playchess.com"]
[Source "ChessBase"]
[SourceQuality "1"]
[TimeControl "40/5400+30:1800+30"]

1. e4 {[%emt 0:00:00]} c5 {[%emt 0:00:00]} 2. Nf3 {[%emt 0:00:00]} d6 {[%emt 0:00:00]} 3. d4 {[%emt 0:00:00]} cxd4 {[%emt 0:00:00]} 4. Qxd4 {[%emt 0:00:00]} Nc6 {[%emt 0:00:00]} 5. Bb5 {[%emt 0:00:00]} Bd7 {[%emt 0:00:00]} 6. Bxc6 {[%emt 0:00:08]} Bxc6 {[%emt 0:00:00]} 7. Nc3 {[%emt 0:00:09]} Nf6 {[%emt 0:00:05]} 8. Bg5 {[%emt 0:00:11]} e6 {[%emt 0:00:05]} 9. O-O-O {[%emt 0:00:09]} Be7 {[%emt 0:00:05]} 10. Qd3 {[%emt 0:00:10]} Qa5 {[%emt 0:00:15]} 11. h4 {[%emt 0:00:11]} h6 {[%emt 0:00:04]} 12. Be3 {[%emt 0:04:37] B53: Sicilian: 2...d6: Lines with Qxd4.} Qc7 {[%emt 0:02:15]} 13. Nd4 {[%emt 0:00:39]} a6 {[%emt 0:00:08] [#]} 14. f4 $146 {[%emt 0:01:27]} ({Predecessor:} 14. f3 b5 15. g4 Nd7 16. Nxc6 Qxc6 17. f4 Nc5 18. Qd4 e5 19. fxe5 Ne6 20. Qd5 Qxd5 21. exd5 Nc7 22. Ne4 O-O-O 23. Rhf1 Rhf8 24. exd6 {1-0 (24) Kasperek,J (1990)-Swieszek,D (1850) Rabka Zdroj 2007}) 14... O-O-O {[%emt 0:00:20]} 15. f5 {[%emt 0:01:16]} Bd7 {[%emt 0:00:07]} 16. Rhe1 {[%emt 0:03:42]} e5 {[%emt 0:03:32]} 17. Nb3 {[%emt 0:00:59]} Bc6 {[%emt 0:00:07]} 18. Nd5 {[%emt 0:18:21]} Nxd5 {[%emt 0:00:45]} 19. exd5 {[%emt 0:00:10]} Bb5 {[%emt 0:00:34]} 20. Qe4 {[%emt 0:00:13]} Kb8 {[%emt 0:01:25]} 21. a4 {[%emt 0:06:03]} Bd7 {[%emt 0:02:19]} 22. a5 $2 {[%emt 0:00:10]} (22. Rd3 $11 Rc8 23. Rc3) 22... Rc8 {[%emt 0:00:31]} 23. Bf2 {[%emt 0:09:55]} Qc4 {[%emt 0:01:28]} 24. Nd2 {[%emt 0:10:04]} Qxe4 {[%emt 0:03:51]} 25. Nxe4 {[%emt 0:00:27]} Bxf5 {[%emt 0:00:53]} 26. Nc3 {[%emt 0:01:09]} Bd8 {[%emt 0:09:27]} 27. Rf1 {[%emt 0:00:35]} Bxa5 {[%emt 0:04:08] [#]} 28. Be1 $2 {[%emt 0:02:56]} (28. Bb6 $1 {[%mdl 512]} Bxb6 29. Rxf5) 28... Bg4 {[%emt 0:02:47]} 29. Rd3 {[%emt 0:01:04]} f5 {[%emt 0:00:40]} 30. Rg3 {[%emt 0:05:12]} Bd8 {[%emt 0:06:37]} 31. Rxg4 $2 {[%emt 0:04:17]} (31. Ne4 {was called for.} Bc7 32. h5) 31... fxg4 {[%emt 0:00:17]} 32. Ne4 {[%emt 0:00:08]} Be7 {[%emt 0:12:11]} 33. Rf7 {[%emt 0:00:25]} Rc4 {[%emt 0:00:40]} 34. Nd2 {[%emt 0:01:29]} Rc7 {[%emt 0:00:21]} 35. Rxg7 {[%emt 0:00:21]} h5 {[%emt 0:01:50]} 36. Ne4 {[%emt 0:01:50]} Bf8 {[%emt 0:02:03]} 37. Rg6 {[%emt 0:00:37]} Rh6 {[%emt 0:03:48]} 38. Rg8 {[%emt 0:00:24]} Rc8 {[%emt 0:00:21]} 39. Bd2 {[%emt 0:00:25]} Rh7 {[%emt 0:00:56]} 40. Ng5 {[%emt 0:00:48]} Rhc7 {[%emt 0:01:10]} 41. Bb4 {[%emt 0:41:34]} Rxc2+ {[%emt 0:31:31]} 42. Kb1 {[%emt 0:00:11]} R2c4 {[%emt 0:04:44]} 43. Ba3 {[%emt 0:00:23]} Ka7 {[%emt 0:09:12]} 44. b3 {[%emt 0:01:49]} Rc3 {[%emt 0:01:07]} 45. Bb2 {[%emt 0:01:03]} Be7 {[%emt 0:05:44]} 46. Rg7 {[%emt 0:00:40]} R3c7 {[%emt 0:01:34]} 47. Ne6 {[%emt 0:00:16]} Rd7 {[%emt 0:04:14]} 48. Bc1 {[%emt 0:01:23]} b5 {[%emt 0:04:24]} 49. Bg5 {[%emt 0:00:41]} Re8 {[%emt 0:00:13]} 50. Be3+ {[%emt 0:07:17]} Kb8 {[%emt 0:02:12]} 51. Rh7 {[%emt 0:00:40]} Rb7 {[%emt 0:01:00]} 52. Rxh5 {[%emt 0:00:35]} Rc8 {[%emt 0:00:59]} 53. Kb2 {[%emt 0:00:54]} a5 {[%emt 0:01:20]} 54. Bg5 {[%emt 0:02:56]} Rg8 {[%emt 0:02:46]} 55. Bd2 {[%emt 0:04:17]} a4 {[%emt 0:00:38]} 56. Rh6 {[%emt 0:01:05]} Ka8 {[%emt 0:09:12]} 57. h5 {[%emt 0:00:57]} e4 {[%emt 0:00:46]} 58. Bc3 {[%emt 0:00:00]} e3 {[%emt 0:00:00]} 59. Rg6 $19 {[%emt 0:00:00]} (59. Be1 $142) 59... Rxg6 {[%emt 0:00:00]} 60. hxg6 {[%emt 0:00:00]} b4 {[%emt 0:00:00]} 61. Be1 {[%emt 0:00:00]} Bf6+ {[%emt 0:00:00]} 62. Kc2 {[%emt 0:00:00]} a3 {[%emt 0:00:00]} 63. g7 {[%emt 0:00:00]} Bxg7 {[%emt 0:00:00]} 64. Nxg7 {[%emt 0:00:00]} Rxg7 {[%emt 0:00:00]} 65. Bxb4 {[%emt 0:00:00]} Rc7+ {[%emt 0:00:00]} 66. Kb1 {[%emt 0:00:00]} e2 {[%emt 0:00:00]} 67. Ka2 {[%emt 0:00:00]} Rc1 {[%emt 0:00:00]} 0-1

[Event "GER-ch Youth U14W 2020"]
[Site "Willingen"]
[Date "2020.10.23"]
[Round "6.2"]
[White "Werner, Rosalie"]
[Black "Bildat, Emilia"]
[Result "0-1"]
[ECO "B27"]
[WhiteElo "1688"]
[BlackElo "1704"]
[Annotator "NA"]
[PlyCount "52"]
[EventDate "2020.10.20"]
[EventType "swiss"]
[EventRounds "7"]
[EventCountry "GER"]
[SourceTitle "playchess.com"]
[Source "ChessBase"]
[SourceQuality "1"]
[TimeControl "40/5400+30:1800+30"]

1. e4 {[%emt 0:00:00]} c5 {[%emt 0:00:00]} 2. Nf3 {[%emt 0:00:00]} g6 {[%emt 0:00:00]} 3. d4 {[%emt 0:00:00]} cxd4 {[%emt 0:00:00]} 4. Qxd4 {[%emt 0:00:00]} Nf6 {[%emt 0:00:07]} 5. Nc3 {[%emt 0:00:00]} Nc6 {[%emt 0:00:24]} 6. Qa4 {[%emt 0:00:04]} d6 {[%emt 0:01:56]} 7. e5 {[%emt 0:00:07]} dxe5 {[%emt 0:00:32]} 8. Nxe5 {[%emt 0:00:08]} Bg7 {[%emt 0:02:04]} 9. Bb5 {[%emt 0:00:15]} O-O {[%emt 0:00:21]} 10. Nxc6 {[%emt 0:00:32]} bxc6 {[%emt 0:00:07]} 11. Bxc6 {[%emt 0:00:05]} Bd7 {[%emt 0:00:07]} 12. O-O {[%emt 0:00:37]} Rc8 {[%emt 0:04:55]} 13. Bxd7 {[%emt 0:00:21]} Qxd7 {[%emt 0:00:14]} 14. Qa6 {[%emt 0:00:12]} Rc6 {[%emt 0:01:59]} 15. Qe2 {[%emt 0:00:08]} Rb8 {[%emt 0:01:32]} 16. Rd1 {[%emt 0:03:10]} Qc7 {[%emt 0:07:52]} 17. Rd3 {[%emt 0:35:15]} e6 {[%emt 0:06:15]} 18. h3 {[%emt 0:12:27]} Nd7 {[%emt 0:13:07]} 19. Nd1 {[%emt 0:14:37]} Rxc2 {[%emt 0:10:53]} 20. Rxd7 {[%emt 0:00:34]} Rxe2 {[%emt 0:00:19]} 21. Rxc7 {[%emt 0:00:08]} Re1+ {[%emt 0:00:08]} 22. Kh2 {[%emt 0:00:09]} Be5+ {[%emt 0:00:16]} 23. g3 {[%emt 0:01:39]} Bxc7 {[%emt 0:00:33]} 24. Ne3 {[%emt 0:06:22]} Bb6 {[%emt 0:05:05]} 25. Ng4 {[%emt 0:08:29]} Rc8 {[%emt 0:11:57]} 26. Nf6+ {[%emt 0:03:11]} Kh8 {[%emt 0:00:20]} 0-1

[Event "GER-ch Youth U14W 2020"]
[Site "Willingen"]
[Date "2020.10.23"]
[Round "6.3"]
[White "Becker, Linda"]
[Black "Wagner, Margarethe"]
[Result "1/2-1/2"]
[ECO "B24"]
[WhiteElo "1767"]
[BlackElo "1804"]
[Annotator "NA"]
[PlyCount "82"]
[EventDate "2020.10.20"]
[EventType "swiss"]
[EventRounds "7"]
[EventCountry "GER"]
[SourceTitle "playchess.com"]
[Source "ChessBase"]
[SourceQuality "1"]
[TimeControl "40/5400+30:1800+30"]

1. e4 {[%emt 0:00:00]} c5 {[%emt 0:00:00]} 2. Nc3 {[%emt 0:00:00]} Nc6 {[%emt 0:01:05]} 3. Bb5 {[%emt 0:00:34]} Nd4 {[%emt 0:01:35]} 4. f4 {[%emt 0:01:14]} e6 {[%emt 0:02:40]} 5. Nf3 {[%emt 0:04:28]} Nxb5 {[%emt 0:04:39]} 6. Nxb5 {[%emt 0:00:09] B23: Closed Sicilian: Lines without g3.} a6 {[%emt 0:00:49]} 7. Nc3 {[%emt 0:00:19]} Be7 {[%emt 0:04:36]} 8. O-O {[%emt 0:02:20]} b5 {[%emt 0:02:58]} 9. d3 {[%emt 0:05:27]} Bb7 {[%emt 0:01:18] [#]} 10. Bd2 $146 {[%emt 0:05:10]} ({Predecessor:} 10. Qe1 Nf6 11. Qg3 Nh5 12. Qh3 Nf6 13. Bd2 c4 14. e5 Nd5 15. Ne4 Rc8 16. Nfg5 cxd3 {1-0 (35) Latorre,F (1818)-Paladines Pinzon,S (1118) Bogota 2018}) 10... d5 {[%emt 0:03:17]} 11. exd5 {[%emt 0:01:21]} exd5 {[%emt 0:06:09]} 12. Re1 {[%emt 0:03:00]} Nf6 {[%emt 0:08:13]} 13. Qe2 {[%emt 0:01:44]} d4 {[%emt 0:02:28]} 14. Nd1 {[%emt 0:04:20]} Bxf3 {[%emt 0:02:46]} 15. Qxf3 {[%emt 0:03:25]} O-O {[%emt 0:00:56]} 16. Nf2 {[%emt 0:01:32]} Re8 {[%emt 0:03:57]} 17. Re2 {[%emt 0:04:45]} Qd5 {[%emt 0:05:35]} 18. Ne4 {[%emt 0:03:35]} Nxe4 {[%emt 0:01:45]} 19. Rxe4 {[%emt 0:01:10]} Qd7 {[%emt 0:07:27]} 20. Rae1 $11 {[%emt 0:04:04]} Bd6 {[%emt 0:06:19]} 21. f5 {[%emt 0:07:44]} Rxe4 {[%emt 0:03:22]} 22. Qxe4 {[%emt 0:01:56]} Rb8 {[%emt 0:02:40]} 23. Bg5 {[%emt 0:09:27]} Qc7 {[%emt 0:04:04]} 24. h3 {[%emt 0:04:34]} c4 {[%emt 0:02:49]} 25. f6 {[%emt 0:02:23]} cxd3 {[%emt 0:06:49]} 26. cxd3 {[%emt 0:00:42]} g6 {[%emt 0:03:28]} 27. Bh6 {[%emt 0:02:15]} Qd7 {[%emt 0:00:46]} 28. Kh1 {[%emt 0:01:34]} Bg3 {[%emt 0:01:25]} 29. Re2 {[%emt 0:03:54]} a5 {[%emt 0:00:24]} 30. Bf4 {[%emt 0:03:07]} Bxf4 {[%emt 0:00:20]} 31. Qxf4 {[%emt 0:00:08]} Qd8 {[%emt 0:00:35]} 32. Re4 {[%emt 0:01:32]} Rb6 {[%emt 0:02:01]} 33. Re7 {[%emt 0:02:06]} Re6 {[%emt 0:01:40]} 34. Qh4 {[%emt 0:03:18]} Qf8 {[%emt 0:01:41]} 35. Rxe6 {[%emt 0:02:20]} fxe6 {[%emt 0:00:05]} 36. Qxd4 {[%emt 0:00:16]} Kf7 {[%emt 0:01:08]} 37. Qd7+ {[%emt 0:01:00]} Kxf6 {[%emt 0:00:21]} 38. Qxb5 {[%emt 0:00:25]} Qd8 {[%emt 0:02:12]} 39. Qc4 {[%emt 0:01:25]} Qb6 {[%emt 0:01:35]} 40. Qc3+ {[%emt 0:03:25]} e5 {[%emt 0:01:56]} 41. b3 {[%emt 0:31:19]} Qf2 {[%emt 0:06:20]} 1/2-1/2

[Event "GER-ch Youth U14W 2020"]
[Site "Willingen"]
[Date "2020.10.23"]
[Round "6.4"]
[White "Sereda, Yaroslava"]
[Black "Hubert, Charlotte"]
[Result "1/2-1/2"]
[ECO "B51"]
[WhiteElo "1756"]
[BlackElo "1438"]
[Annotator "NA"]
[PlyCount "67"]
[EventDate "2020.10.20"]
[EventType "swiss"]
[EventRounds "7"]
[EventCountry "GER"]
[SourceTitle "playchess.com"]
[Source "ChessBase"]
[SourceQuality "1"]
[TimeControl "40/5400+30:1800+30"]

1. e4 {[%emt 0:00:00]} c5 {[%emt 0:00:00]} 2. Nf3 {[%emt 0:00:00]} d6 {[%emt 0:00:01]} 3. Bb5+ {[%emt 0:00:10]} Nd7 {[%emt 0:00:34]} 4. c3 {[%emt 0:01:10]} a6 {[%emt 0:01:44]} 5. Ba4 {[%emt 0:00:41]} Ngf6 {[%emt 0:02:07]} 6. Qe2 {[%emt 0:02:41]} b5 {[%emt 0:03:01]} 7. Bc2 {[%emt 0:00:30]} Bb7 {[%emt 0:04:37]} 8. O-O {[%emt 0:01:44]} e5 {[%emt 0:05:37]} 9. d4 {[%emt 0:02:16]} cxd4 {[%emt 0:02:41]} 10. cxd4 {[%emt 0:00:07]} Be7 {[%emt 0:02:21]} 11. Rd1 {[%emt 0:01:53]} Qc7 {[%emt 0:02:11]} 12. Bg5 {[%emt 0:15:23]} O-O {[%emt 0:03:58]} 13. a3 {[%emt 0:07:26]} h6 {[%emt 0:05:25]} 14. Bh4 {[%emt 0:01:29]} Rfe8 {[%emt 0:05:58]} 15. Nc3 {[%emt 0:17:51]} Nf8 {[%emt 0:08:13]} 16. Bxf6 {[%emt 0:04:36]} Bxf6 {[%emt 0:01:24]} 17. Bb3 {[%emt 0:05:35]} Ne6 {[%emt 0:09:15]} 18. dxe5 {[%emt 0:07:11]} dxe5 {[%emt 0:03:28]} 19. Rac1 {[%emt 0:01:36]} Qb6 {[%emt 0:03:56]} 20. Rd7 {[%emt 0:04:07]} Rad8 {[%emt 0:08:59]} 21. Rcd1 {[%emt 0:08:22]} Rxd7 {[%emt 0:07:11]} 22. Rxd7 {[%emt 0:00:06]} Rd8 {[%emt 0:02:21]} 23. Qd1 {[%emt 0:01:40]} Rxd7 {[%emt 0:02:55]} 24. Qxd7 {[%emt 0:00:05]} Qc6 {[%emt 0:01:27]} 25. Qd1 {[%emt 0:09:34]} Nd4 {[%emt 0:05:35]} 26. Bd5 {[%emt 0:02:20]} Qd7 {[%emt 0:01:16]} 27. Bxb7 {[%emt 0:00:52]} Qxb7 {[%emt 0:00:05]} 28. Nd5 {[%emt 0:00:15]} Qa7 {[%emt 0:00:55]} 29. Qd3 {[%emt 0:00:47]} Qc5 {[%emt 0:00:58]} 30. Qd2 {[%emt 0:02:18]} Qc4 {[%emt 0:01:55]} 31. Nxf6+ gxf6 32. Qxh6 Ne2+ 33. Kh1 Qc2 34. h3 1/2-1/2

[Event "GER-ch Youth U14W 2020"]
[Site "Willingen"]
[Date "2020.10.23"]
[Round "6.5"]
[White "Zöllner, Bente"]
[Black "Buchholz, Maja"]
[Result "1/2-1/2"]
[ECO "A48"]
[WhiteElo "1630"]
[BlackElo "1628"]
[Annotator "NA"]
[PlyCount "118"]
[EventDate "2020.10.20"]
[EventType "swiss"]
[EventRounds "7"]
[EventCountry "GER"]
[SourceTitle "playchess.com"]
[Source "ChessBase"]
[SourceQuality "1"]
[TimeControl "40/5400+30:1800+30"]

1. d4 {[%emt 0:00:00]} Nf6 {[%emt 0:00:00]} 2. Nf3 {[%emt 0:00:00]} g6 {[%emt 0:00:00]} 3. c4 {[%emt 0:00:00]} Bg7 {[%emt 0:00:00]} 4. Nc3 {[%emt 0:00:00]} O-O {[%emt 0:00:00]} 5. e4 {[%emt 0:00:06]} d6 {[%emt 0:00:02]} 6. h3 {[%emt 0:00:10]} c5 {[%emt 0:00:24]} 7. d5 {[%emt 0:00:21]} b5 {[%emt 0:00:19]} 8. cxb5 {[%emt 0:01:54]} a6 {[%emt 0:00:09]} 9. Bd3 {[%emt 0:00:42]} Qa5 {[%emt 0:01:10]} 10. Bd2 {[%emt 0:07:29]} Nbd7 {[%emt 0:14:56]} 11. O-O {[%emt 0:03:44]} axb5 {[%emt 0:01:59]} 12. Nxb5 {[%emt 0:01:24]} Qb6 {[%emt 0:00:15]} 13. a4 {[%emt 0:03:26]} Ba6 {[%emt 0:00:49]} 14. Qe2 {[%emt 0:00:51]} Rfb8 {[%emt 0:01:42]} 15. Bc3 {[%emt 0:02:47]} Bh6 {[%emt 0:12:24]} 16. Bd2 {[%emt 0:04:13]} Bg7 {[%emt 0:02:29]} 17. Bc3 {[%emt 0:03:34]} Bh6 {[%emt 0:02:19]} 18. Nd2 {[%emt 0:05:49]} Bxd2 {[%emt 0:10:50]} 19. Bxd2 {[%emt 0:00:36]} Ne5 {[%emt 0:00:46]} 20. Bh6 {[%emt 0:09:40]} Nxd3 {[%emt 0:01:39]} 21. Qxd3 {[%emt 0:00:38]} Rb7 {[%emt 0:01:08]} 22. Qc4 {[%emt 0:07:59]} Rab8 {[%emt 0:01:22]} 23. b4 {[%emt 0:02:57]} Bxb5 {[%emt 0:02:52]} 24. axb5 {[%emt 0:01:10]} cxb4 {[%emt 0:05:20]} 25. Qxb4 {[%emt 0:01:54]} Qxb5 {[%emt 0:00:58]} 26. Qxb5 {[%emt 0:01:43]} Rxb5 {[%emt 0:00:06]} 27. f3 {[%emt 0:00:13]} Nd7 {[%emt 0:01:52]} 28. Ra7 {[%emt 0:02:03]} R5b7 {[%emt 0:00:52]} 29. Rfa1 {[%emt 0:00:29]} f6 {[%emt 0:01:07]} 30. Rxb7 {[%emt 0:00:59]} Rxb7 {[%emt 0:00:04]} 31. Ra8+ {[%emt 0:00:17]} Nb8 {[%emt 0:01:23]} 32. Be3 {[%emt 0:04:53]} Kg7 {[%emt 0:00:34]} 33. Kf2 {[%emt 0:00:52]} Nd7 {[%emt 0:00:58]} 34. f4 {[%emt 0:01:17]} h6 {[%emt 0:09:10]} 35. Kf3 {[%emt 0:01:54]} g5 {[%emt 0:06:06]} 36. g3 {[%emt 0:02:28]} Nc5 {[%emt 0:03:26]} 37. Bxc5 {[%emt 0:02:02]} dxc5 {[%emt 0:00:06]} 38. Rc8 {[%emt 0:00:53]} Rb3+ 39. Kg4 {[%emt 0:05:50]} h5+ {[%emt 0:04:36]} 40. Kxh5 {[%emt 0:02:36]} Rxg3 {[%emt 0:00:09]} 41. fxg5 {[%emt 0:30:23]} Rxg5+ {[%emt 0:34:48]} 42. Kh4 {[%emt 0:00:11]} Re5 {[%emt 0:00:20]} 43. Rxc5 {[%emt 0:01:10]} Rxe4+ {[%emt 0:00:58]} 44. Kg3 {[%emt 0:00:22]} Kf7 {[%emt 0:00:48]} 45. h4 {[%emt 0:02:45]} Kg6 {[%emt 0:03:58]} 46. Rb5 {[%emt 0:11:24]} Re3+ {[%emt 0:00:45]} 47. Kf4 {[%emt 0:03:58]} Re5 {[%emt 0:00:39]} 48. Rb7 {[%emt 0:00:00]} Kh5 {[%emt 0:00:00]} 49. Rd7 {[%emt 0:00:00]} Re1 {[%emt 0:00:00]} 50. Kf5 {[%emt 0:00:00]} Kxh4 {[%emt 0:00:00]} 51. Rxe7 {[%emt 0:00:00]} Rxe7 {[%emt 0:00:00]} 52. Kxf6 {[%emt 0:00:00]} Re1 {[%emt 0:00:00]} 53. d6 {[%emt 0:00:00]} Rd1 {[%emt 0:00:00]} 54. Ke7 {[%emt 0:00:00]} Kg5 {[%emt 0:00:00]} 55. d7 {[%emt 0:00:00]} Re1+ {[%emt 0:00:00]} 56. Kf7 {[%emt 0:00:00]} Rf1+ {[%emt 0:00:00]} 57. Ke7 {[%emt 0:00:00]} Re1+ {[%emt 0:00:00]} 58. Kf7 {[%emt 0:00:00]} Rd1 {[%emt 0:00:00]} 59. Ke7 {[%emt 0:00:00]} Re1+ {[%emt 0:00:00]} 1/2-1/2

[Event "GER-ch Youth U14W 2020"]
[Site "Willingen"]
[Date "2020.10.23"]
[Round "6.6"]
[White "Pikki, Daria"]
[Black "Prinzen, Siri Marleen"]
[Result "0-1"]
[ECO "D35"]
[WhiteElo "1545"]
[BlackElo "1712"]
[Annotator "NA RC"]
[PlyCount "60"]
[EventDate "2020.10.20"]
[EventType "swiss"]
[EventRounds "7"]
[EventCountry "GER"]
[SourceTitle "playchess.com"]
[Source "ChessBase"]
[SourceQuality "1"]
[TimeControl "40/5400+30:1800+30"]

1. d4 {[%emt 0:00:00]} d5 {[%emt 0:00:00]} 2. c4 {[%emt 0:00:00]} e6 {[%emt 0:00:00]} 3. Nc3 {[%emt 0:00:00]} Nf6 {[%emt 0:00:00]} 4. cxd5 {[%emt 0:00:00]} exd5 {[%emt 0:00:06]} 5. Bg5 {[%emt 0:00:00]} Be7 {[%emt 0:00:39]} 6. e3 {[%emt 0:00:10]} h6 {[%emt 0:02:46]} 7. Bh4 {[%emt 0:02:20]} Nbd7 {[%emt 0:01:57]} 8. Nf3 {[%emt 0:00:59]} c6 {[%emt 0:00:44]} 9. Bd3 {[%emt 0:00:57]} O-O {[%emt 0:03:43]} 10. Qc2 {[%emt 0:01:27]} Nh5 {[%emt 0:04:06]} 11. Bxe7 {[%emt 0:01:20]} Qxe7 {[%emt 0:00:02]} 12. O-O {[%emt 0:00:36]} Nb6 {[%emt 0:03:11]} 13. Rab1 {[%emt 0:05:16]} Be6 {[%emt 0:03:38]} 14. Ne5 {[%emt 0:06:04]} Nf6 {[%emt 0:02:57]} 15. b4 {[%emt 0:01:26]} Nc4 {[%emt 0:03:33]} 16. Nxc4 {[%emt 0:01:34]} dxc4 {[%emt 0:00:02]} 17. Be2 {[%emt 0:00:52]} b5 {[%emt 0:02:57]} 18. a4 {[%emt 0:03:00]} a6 {[%emt 0:02:10]} 19. Bf3 {[%emt 0:02:13]} Nd5 {[%emt 0:05:51]} 20. Bxd5 {[%emt 0:00:35]} Bxd5 {[%emt 0:00:45]} 21. Qb2 {[%emt 0:01:15]} Qg5 {[%emt 0:02:24]} 22. e4 {[%emt 0:01:52]} Be6 {[%emt 0:01:03]} 23. f3 {[%emt 0:01:38]} Qe3+ {[%emt 0:02:53]} 24. Kh1 {[%emt 0:01:33]} Qxd4 {[%emt 0:00:35]} 25. Ra1 {[%emt 0:02:08]} Rfd8 {[%emt 0:03:39]} 26. axb5 {[%emt 0:06:41]} axb5 {[%emt 0:00:35]} 27. Qc1 {[%emt 0:09:46]} Kh7 {[%emt 0:04:27]} 28. Rd1 {[%emt 0:05:29]} Rxa1 {[%emt 0:00:40]} 29. Qxa1 {[%emt 0:01:27]} Qxc3 {[%emt 0:00:22]} 30. Qxc3 {[%emt 0:00:47]} Rxd1+ {[%emt 0:00:04]} 0-1